Cogmind - Beta 13 @@@ ROGUE MODE // 2024.07.16 @ 21:54:41 Player: Briarspitter Result: Destroyed by as-55458 with Assembled Maul Performance ------------- Evolutions (0) 0 Regions Visited (2) 400 Robots Destroyed (17) 85 Value Destroyed (277) 277 Prototype IDs (0) 0 Alien Tech Used (0) 0 Bonus (0) 0 TOTAL SCORE: 762 Bonus ------- None Cogmind --------- Core Integrity 0/250 Matter 147/300 Energy 250/250 System Corruption 12% Temperature Cool (0) Movement Walking (120) Location -10/Mines Parts ------- > --- POWER (1) -------- Ion Engine > --- PROPULSION (2) --- Aluminum Leg Aluminum Leg > --- UTILITY (2) ------ Heat Sink Medium Storage Unit > --- WEAPON (2) ------- Hammer > --- INVENTORY (10) --- Ion Engine Aluminum Leg Sensor Array Signal Interpreter Datajack Peak State ------------ > --- POWER ------------ Light Ion Engine > --- PROPULSION ------- Aluminum Leg Aluminum Leg > --- UTILITY ---------- Medium Storage Unit Improved Terrain Scanner > --- WEAPON ----------- Assault Rifle Assault Rifle > --- INVENTORY -------- Ion Engine Light Treads Light Treads Sensor Array Seismic Detector Small Laser Small Laser Assault Rifle Grenade Launcher Hammer [Rating: 10] Favorites ----------- Power Ion Engine Engine Ion Engine Propulsion Aluminum Leg Leg Aluminum Leg Utility Medium Storage Unit Device Sensor Array Storage Medium Storage Unit Weapon Beam Cannon Energy Cannon Beam Cannon Ballistic Gun Assault Rifle Launcher Grenade Launcher Impact Weapon Hammer Build | -11 -10 -10 ------- Run | Yrd Mat Min Slots Evolved . | . . . Power . | . . . Propulsion . | . . . Utility . | . . . Weapon . | . . . Parts Attached 20 | 7 6 7 Power 3 | 1 1 1 Engine 3 | 1 1 1 Core . | . . . Reactor . | . . . Propulsion 4 | 2 . 2 Treads . | . . . Leg 4 | 2 . 2 Wheel . | . . . Hover . | . . . Flight . | . . . Utility 7 | 2 3 2 Device 5 | 1 2 2 Storage 2 | 1 1 . Processor . | . . . Hackware . | . . . Protection . | . . . Artifact . | . . . Weapon 6 | 2 2 2 Energy Gun . | . . . Energy Cannon 2 | . 2 . Ballistic Gun 2 | 2 . . Ballistic Cannon . | . . . Launcher 1 | . . 1 Special Weapon . | . . . Impact Weapon 1 | . . 1 Slashing Weapon . | . . . Piercing Weapon . | . . . Special Melee Weapon . | . . . Unidentified Prototypes . | . . . Parts Lost 4 | . . 4 Power . | . . . Propulsion 1 | . . 1 Utility 2 | . . 2 Weapon 1 | . . 1 Highest Loss Streak 2 | . . 2 To Critical Strikes . | . . . Average Slot Usage (%) 97 | . 99 91 Engine 14 | . 14 14 Leg 27 | . 28 27 Device 12 | . 14 7 Storage 14 | . 14 14 Energy Cannon 13 | . 16 5 Ballistic Gun 8 | . 11 . Launcher 2 | . . 11 Impact Weapon 2 | . . 10 Naked Turns . | . . . Heaviest Build 22 | 13 22 22 Greatest Support 20 | 20 20 20 Greatest Overweight (x) 1 | . 1 1 Average Overweight (x) . | . . . Largest Inventory Capacity 10 | 8 10 10 Average Capacity 9 | 7 9 10 Most Carried 10 | 5 10 10 Average Carried 8 | 3 9 7 Final Capacity 10 | 8 10 10 Final Carried 10 | 5 10 5 Class Distribution -------------------- 100% | Mutant Dominant Class ---------------- Mutant | -10/Materials Mutant | -10/Mines Resources | -11 -10 -10 ----------- Run | Yrd Mat Min Matter Collected 455 | 297 96 62 Remotely . | . . . Salvage Created 432 | 100 239 93 Parts 37 | 5 19 13 Haulers Intercepted 1 | . 1 . Recyclers Shooed 1 | 1 . . Parts Field Recycled . | . . . Retrieved Matter . | . . . Parts Self-Destructed . | . . . Prevented . | . . . Kills | -11 -10 -10 ------- Run | Yrd Mat Min Combat Hostiles Destroyed 14 | . 6 8 Guns 2 | . 2 . Cannons 6 | . 3 3 AOE 3 | . . 3 Classes Destroyed 7 | 2 4 1 Tunneler 1 | 1 . . Hauler 1 | . 1 . Recycler 1 | 1 . . Watcher 1 | . 1 . Swarmer 9 | . 3 6 Grunt 4 | . 3 1 Assembled 1 | . . 1 Best Kill Streak 4 | 1 4 3 Combat Bots Only 4 | . 4 3 Max Kills in Single Turn 2 | 1 2 2 Gunslinging 1 | . 1 . Exploded 2 | . . 2 Melee . | . . . Uniques/NPCs Destroyed . | . . . Combat | -11 -10 -10 -------- Run | Yrd Mat Min Hostile Shots Fired 71 | . 19 52 Missed 17 | . 8 9 Damage Taken 672 | . 96 576 Core 255 | . 12 243 Absorbed by Shields . | . . . Core Remaining (%) 100 | 100 . . Volleys Fired 45 | 6 24 15 Largest 2 | 2 2 2 Hottest 120 | 40 120 120 Shots Fired 85 | 9 48 28 Gun 21 | 9 12 . Cannon 60 | . 36 24 Launcher 4 | . . 4 Special . | . . . Kinetic 21 | 9 12 . Thermal 60 | . 36 24 Explosive 4 | . . 4 Electromagnetic . | . . . Robot Hit Streak 7 | 6 7 2 Robot Miss Streak 6 | 1 3 6 Penetration Max . | . . . Secondary Targets 1 | . 1 . Max Gunslinging Chain 1 | . 1 . Shots Hit Robots 45 | 7 26 12 Core Hits 20 | 3 9 8 Critical Kills 1 | . 1 . Critical Parts Destroyed 2 | . . 2 Critical Strikes 3 | . 1 2 Meltdown 1 | . 1 . Smash 2 | . . 2 Melee Attacks 14 | . . 14 Impact 14 | . . 14 Slashing . | . . . Piercing . | . . . Sneak Attacks . | . . . Combat Hostiles . | . . . Follow-up Attacks . | . . . Damage Inflicted 1024 | 85 396 543 Guns 202 | 85 117 . Cannons 401 | . 279 122 Explosions 226 | . . 226 Melee 195 | . . 195 Ramming . | . . . Kinetic 202 | 85 117 . Thermal 401 | . 279 122 Explosive 226 | . . 226 Electromagnetic . | . . . Impact 195 | . . 195 Slashing . | . . . Piercing . | . . . Highest Corruption 12 | . 3 12 Average Corruption 3 | . 2 3 Corruption Purged . | . . . Corruption Blocked . | . . . Effects 9 | . 1 8 Message Errors 1 | . . 1 Matter Fused 3 | . . 3 Heat Flow Errors 2 | . 1 1 Data Loss (minor) 2 | . . 2 Misfires 1 | . . 1 Overload Shots . | . . . Overflow Damage 128 | . 14 114 Projectiles 14 | . 14 . Explosions 17 | . . 17 Melee 97 | . . 97 Knockbacks 1 | . . 1 Impact 1 | . . 1 Kinetic . | . . . Secondary . | . . . Self-Inflicted Damage 15 | . . 15 Shots 1 | . . 1 Rammed . | . . . Targets Rammed . | . . . Kicked . | . . . Crushed . | . . . Highest Temperature 569 | . 341 569 Average Temperature 189 | . 123 286 Received Heat Transfer 72 | . 30 42 Effects 24 | . . 24 Shutdowns 3 | . . 3 Energy Bleed 2 | . . 2 Matter Decay 2 | . . 2 Damage (minor) 5 | . . 5 Damage (major) 9 | . . 9 Damage (core) 3 | . . 3 Siege Activations . | . . . Robots Corrupted . | . . . Combat Hostiles . | . . . Parts Fried 1 | . . 1 Impact Corruptions 3 | . . 3 Robots Melted 1 | . 1 . Combat Hostiles 1 | . 1 . Parts Melted 1 | . 1 . Heat Transferred 851 | . 592 259 Parts Sabotaged . | . . . Parts Stolen . | . . . Parts Stripped . | . . . Power Chain Reactions . | . . . Alert | -11 -10 -10 ------- Run | Yrd Mat Min Peak Influence 208 | 10 151 208 Initial 29 | . 6 29 Average 50 | 8 23 167 Maximum Alert Level 1 | . . 1 Low Security (%) 99 | 100 100 98 Level 1 . | . . 1 Level 2 . | . . . Level 3 . | . . . Level 4 . | . . . Level 5 . | . . . High Security . | . . . Max Security . | . . . Squads Dispatched 1 | . 1 . Investigation . | . . . Extermination . | . . . Reinforcement 1 | . 1 . Assault . | . . . Garrison . | . . . Intercept . | . . . Searches Triggered . | . . . Construction Impeded . | . . . Haulers Reinforced . | . . . Active Scanning Responses . | . . . Cargo Convoy Interrupts . | . . . Stealth | -11 -10 -10 --------- Run | Yrd Mat Min Distress Signals . | . . . Communications Jammed . | . . . Distress Signals . | . . . Times Spotted 22 | . 12 10 Peak Tracking Total 3 | . 3 3 Tactical Retreats 2 | . 1 1 Traps | -11 -10 -10 ------- Run | Yrd Mat Min Traps Triggered 2 | . 2 . Indirectly . | . . . Trap Hack Attempts . | . . . Triggered . | . . . Disarmed . | . . . Reprogrammed . | . . . Reused . | . . . Traps Extracted . | . . . Installed . | . . . Triggered . | . . . Machines | -11 -10 -10 ---------- Run | Yrd Mat Min Machines Disabled 3 | . 3 . Max in Single Turn 1 | . 1 . Machines Repaired . | . . . Machines Dismantled . | . . . Machines Sabotaged . | . . . Overloaded Fab Kills . | . . . Hacking | -11 -10 -10 --------- Run | Yrd Mat Min Machines Accessed 1 | . 1 . Terminals . | . . . Fabricators . | . . . Repair Stations . | . . . Recycling Units 1 | . 1 . Scanalyzers . | . . . Garrison Access . | . . . Total Hacks 2 | . 2 . Successful . | . . . Failed 2 | . 2 . Catastrophic . | . . . Database Lockouts . | . . . Manual . | . . . Terminals . | . . . Fabricators . | . . . Repair Stations . | . . . Recycling Units 2 | . 2 . Scanalyzers . | . . . Garrison Access . | . . . Terminal Hacks . | . . . Fabricator Hacks . | . . . Repair Station Hacks . | . . . Recycling Unit Hacks . | . . . Scanalyzer . | . . . Garrison Access Hacks . | . . . Unauthorized Hacks . | . . . Terminals . | . . . Fabricators . | . . . Repair Stations . | . . . Recycling Units . | . . . Scanalyzers . | . . . Garrison Access . | . . . Data Cores Recovered . | . . . Used . | . . . Hacking Detections 1 | . 1 . Full Trace Events . | . . . Feedback Events . | . . . Feedback Blocked . | . . . Robot Schematics Acquired . | . . . Robots Built . | . . . Authchips . | . . . Time . | . . . Total Robot Build Rating . | . . . Part Schematics Acquired . | . . . Parts Built . | . . . Authchips . | . . . Time . | . . . Total Part Build Rating . | . . . Parts Repaired . | . . . Time . | . . . Parts Recycled . | . . . Recycled Matter . | . . . Retrieved Matter . | . . . Retrieved Components . | . . . Parts Scanalyzed . | . . . Part Schematics Acquired . | . . . Parts Damaged . | . . . Bothacking | -11 -10 -10 ------------ Run | Yrd Mat Min Used RIF Installer . | . . . Robots Hacked . | . . . Non-combat . | . . . Combat . | . . . Robot Hacks Applied . | . . . Relay Couplers Released . | . . . Fabnet Peak Effective % . | . . . Robots Rewired . | . . . Allies Hacked . | . . . Hacks Repelled . | . . . Allies | -11 -10 -10 -------- Run | Yrd Mat Min Total Allies . | . . . Largest Group . | . . . Highest-Rated Group . | . . . Highest-Rated Ally . | . . . Total Orders . | . . . Ally Attacks . | . . . Total Damage . | . . . Kills . | . . . Allies Corrupted . | . . . Allies Melted . | . . . Intel | -11 -10 -10 ------- Run | Yrd Mat Min Robot Analysis Total . | . . . Derelict Logs Recovered . | . . . Drone Launches . | . . . Drone Recoveries . | . . . Exploration | -11 -10 -10 ------------- Run | Yrd Mat Min Turns Passed 1630 | 207 1098 325 Spaces Moved 671 | 88 447 136 Core 11 | 11 . . Treads . | . . . Legs 660 | 77 447 136 Wheels . | . . . Hover . | . . . Flight . | . . . Fastest Speed 50 | 50 120 120 Average Speed 149 | 111 157 146 Slowest Speed 190 | 120 190 190 Overloaded Moves . | . . . Propulsion Burnouts . | . . . Robots Hopped . | . . . Cave-ins Triggered . | . . . Exploration Rate (%) 24 | 5 38 30 Regions Visited 2 Branch Regions 1 Pre-discovered Areas . | . . . Known Exits Taken . | . . . Unknown Exits Taken 2 | 1 1 . Scrap Searched . | . . . Spaces Dug . | . . . Terrain Destroyed 33 | . . 33 Melee . | . . . Projectile . | . . . AOE 33 | . . 33 Terrain Rammed . | . . . Walls Destroyed . | . . . Machines Disabled . | . . . Actions | -11 -10 -10 --------- Run | Yrd Mat Min Total 1191 | 185 795 211 Wait 409 | 79 294 36 Move 669 | 87 446 136 Hop . | . . . Pick Up 19 | 6 13 . Fast Attach 10 | 6 4 . Attach 6 | 1 . 5 Detach 1 | . . 1 Swap 4 | . 2 2 Drop 14 | . 12 2 Fire 45 | 6 24 15 Melee 14 | . . 14 Ram . | . . . Kick . | . . . Crush . | . . . Escape Stasis . | . . . Rewire . | . . . Trap . | . . . Miscellaneous . | . . . Route ------- -11/Scrapyard -10/Materials -10/Mines History --------- Turn | Location | Event 6 | -11/Scrapyard | Discovered new exit (range 15) 208 | -11/Scrapyard | Entered Materials 242 | -10/Materials | Discovered new exit (range 14) 307 | -10/Materials | Build established: Mutant 1306 | -10/Materials | Entered Mines 1348 | -10/Mines | Core integrity fell below 50% 1543 | -10/Mines | Excavation squad dispatched 1543 | -10/Mines | A large section of the Mines collapsed 1561 | -10/Mines | Core integrity fell below 20% 1629 | -10/Mines | System corruption reached 10% 1631 | -10/Mines | Destroyed by as-55458 with Assembled Maul Last Messages --------------- K-01 Serf collects debris. K-01 Serf destroyed. G-34 Mercenary suffers critical hit (Smash). Destroyed Aluminum Leg. G-34 Mercenary system corrupted by crushing effect. G-34 Mercenary knocked back. G-34 Mercenary system terminally corrupted. Ion Engine fried. K-01 Serf collects debris. Imp. Terrain Scanner destroyed. System corrupted by crushing effect (+4). K-01 Serf collects debris. Grenade Launcher destroyed. System corrupted by crushing effect (+5). G-34 Mercenary suffers critical hit (Smash). Destroyed Sml. Laser. G-34 Mercenary system corrupted by crushing effect. K-01 Serf collects debris. Map ----- +----------------------------------------------------+ | ?????????????????????????????????????????????????? | | ?????????????????????????????????????????????????? | | ?????????????????????????????????????????????????? | | ?????????????????????????????????????????????????? | | ?????????????????????????????????????????????????? | | ?????????????????????????????????????????????????? | | ?????????????????????????????????????????????????? | | ?????????????????????????????????????????????????? | | ?????????????????????????????????????????????????? | | ?????????????????????????????????????????????????? | | ?????????????????????????????????????????????????? | | ?????????????????????????????????????????????????? | | ?????????????????????????????? ??????????????????? | | ??????????????? ?????????? ??????????????????????? | | ???????????????????????? ?????????#??????????????? | | ??????????????????????? ?????????????????????????? | | ????????????????????? ???????????????????????????? | | ????????????????????????????????????#????????????? | | ?????????????????????????????????????????????????? | | ??????????????????????????#??????????????????????? | | ??????????????????##?????????????????????????????? | | ???????????????????# ??????????????#???#?????????? | | ???????????????????# ######??????????##?????????? | | ???????????????????# g g $#?#??????? #?????????? | | ??????????????????#?? t %=#?#?????? ##????????? | | ????????????????????????#@ #??????? #????????? | | ???????????????????????## a######?# ?????????? | | ??????????????#???????## ## ?????????? | | ????????????? ????????# """??????????? | | ??????????# ##### """??????????? | | ???????????????# t """ #????????? | | ??????????????## #????????? | | ???????????????########### =%= t #?????????? | | ??????????????## ##??????##k #### #?????????? | | ?????????????## #?????#?## ##?#? #?#??????? | | ????????###### #####????# #?#??? ??????????? | | ????????# #????# #??????????#???????? | | ????????# ### #????# #??????? ??????????? | | ????????# #### #?# #?#### %#??????????????????? | | ????????# #??# ##?# #????# #????????#?????????? | | ???###### #??## ##??# #????#" #??????????????????? | | #### #???###??## ###### # #????????????????? | | ######??????#?# # # #????????????????? | | #### ##????????????# #######"# #????????????????? | | #### #####??????#?# ##?? ### #???????#????????? | | # # #####????# #???? #??#????????????? | | ] =##?#??# #???? #??????????????? | | [== ] #????# ###??? #?????????????? | | [ =#???## #???? #?????????????? | | * # * =##?### ####??? ##?????????????? | +----------------------------------------------------+ Best States ------------- Heat Dissipation 35 Energy Generation 10 Energy Capacity 250 Matter Stores 300 Matter Capacity 300 Sight Range 16 Robot Scan Range 14 Terrain Scan Range 16 Terrain Scan Density 10 Evasion (%) 55 Item Schematics ----------------- None Robot Schematics ------------------ None Fabricated ------------ Nothing Alien Tech Used ----------------- None Achievements -------------- It's Just You Maybe Next Time I'll Detach My Launcher Challenges ------------ None Game ------ Seed GammaCoolantCutter Manual? 0 Play Time 00:13:05 Cumulative 10.0 hours Start 2024.07.16 @ 21:41:35 End 2024.07.16 @ 21:54:41 Sessions 1 Manual Loads 0 Difficulty Rogue Special Mode None Game No. 7 Rogue 7 Adventurer 0 Explorer 0 Win Type - Total 0 Types 0/0/0/0/0/0/0/0/0 Lore% 13 Gallery% 18 Achievement% 14 Wizard Run 0 Options --------- Layout 1 ASCII 0 Keyboard 0 Movement Numpad Keybinds 0 Fullscreen 1 Font 24/Smallcaps Map View 50x35 Zoom Use 0% Tactical HUD 0 Map Filters NONE Filters NONE Steam 1 RUN: 516f40a7-27f5-4bc4-a80d-dbb7e9997f5a